[Event "DFMMLV 2017"]
[Site "Braunfels"]
[Date "2017.06.18"]
[Round "5"]
[White "Damrich, Alina"]
[Black "Vollstaedt-Klein, Sabine"]
[Result "1-0"]
[ECO "C44"]
[WhiteElo "1744"]
[BlackElo "1879"]
[Annotator "NA RC"]
[PlyCount "107"]
[EventDate "2017.??.??"]
[EventType "team-tourn"]
[EventCountry "GER"]
[SourceTitle "playchess.com"]
[Source "ChessBase"]
[SourceQuality "1"]
[TimeControl "40/5400+30:1800+30"]

{[%evp 10,107,58,40,79,-15,0,-23,-9,-21,-3,0,14,0,8,-12,22,11,64,-38,-45,-34,0,0,0,32767,34,-24,-13,-14,14,-19,32767,-21,18,10,61,32767,32767,32767,32767,32767,32767,32767,32767,32767,360,32767,32767,383,368,32767,321,347,32767,376,422,32767,358,32767,533,398,32767,404,32767,397,32767,32767,381,408,32767,32767,32767,393,400,413,1309,1189,1237,32767,543,510,467,546,480,631,584,32767,582,639,624,704,29989,29990,745,29992,841,29996,29994,29998]} 1. e4 {[%emt 0:00:00]} e5 {[%emt 0:00:08]} 2. Nf3 {[%emt 0:00:00]} Nc6 {[%emt 0:00:06]} 3. d4 {[%emt 0:00:09]} exd4 {[%emt 0:00:39]} 4. Nxd4 {[%emt 0:00:07]} Nge7 {[%emt 0:01:43]} 5. Bc4 {[%emt 0:03:28]} d6 {[%emt 0:02:10] C45: Scotch Game} (5... Nxd4 6. Qxd4 Nc6 7. Qd5 Qf6 8. O-O Ne5 9. Be2 c6 10. Qb3 Bc5 11. Be3 Bxe3 12. Qxe3 g5 13. Nd2 d6 14. Nc4 Nxc4 15. Bxc4 Be6 16. Bxe6 fxe6 {1-0 (38) Andreikin,D (2736)-Forsberg,V (2370) Stockholm 2016}) 6. Bg5 {[%emt 0:02:34]} h6 $146 {[%emt 0:04:08]} ({Predecessor:} 6... Nxd4 7. Qxd4 Be6 8. Bxe6 fxe6 9. f4 h6 10. Bxe7 Qxe7 11. Nc3 e5 12. Qc4 c6 13. O-O exf4 14. Rxf4 g5 15. Rf5 {1-0 (52) Jensen,B (2257)-Christensen,T (2330) Denmark 2007}) 7. Bh4 {[%emt 0:08:35]} (7. Nxc6 $14 bxc6 8. Be3) 7... g5 {[%emt 0:04:04]} 8. Bg3 {[%emt 0:01:17]} Bg7 {[%emt 0:00:45]} 9. c3 {[%emt 0:04:19]} Bd7 {[%emt 0:03:45]} 10. Na3 {[%emt 0:07:49]} Ng6 {[%emt 0:08:45]} 11. Nac2 {[%emt 0:08:41]} Qe7 {[%emt 0:03:10]} 12. Qe2 {[%emt 0:01:30]} a6 {[%emt 0:01:31]} 13. O-O-O {[%emt 0:04:07]} O-O-O {[%emt 0:03:50]} (13... h5 $11) 14. Bd5 {[%emt 0:07:57]} (14. Bxa6 $14 Nxd4 15. cxd4 (15. Nxd4 bxa6 16. Qxa6+ Kb8 $11)) 14... Nxd4 {[%emt 0:01:17]} 15. Nxd4 {[%emt 0:00:26]} Rhe8 {[%emt 0:06:37]} 16. Rhe1 {[%emt 0:05:14]} f5 {[%emt 0:10:08]} 17. f3 {[%emt 0:03:01]} fxe4 {[%emt 0:07:07]} (17... Bxd4 $5 18. cxd4 (18. Rxd4 f4 $11) 18... Be6 19. Bxe6+ Qxe6 $11) 18. Bxe4 {[%emt 0:06:16]} Qf7 {[%emt 0:03:23]} 19. Qc2 {[%emt 0:05:26]} Nf4 {[%emt 0:02:25]} 20. Bxf4 {[%emt 0:02:43]} Qxf4+ {[%emt 0:01:58]} 21. Kb1 {[%emt 0:01:21]} Qxh2 {[%emt 0:03:12]} (21... Bxd4 $5 22. cxd4 c6 $11) 22. Qb3 {[%emt 0:02:55]} c6 {[%emt 0:00:22]} 23. Nf5 {[%emt 0:06:08]} Be6 {[%emt 0:09:13]} 24. Qb6 {[%emt 0:04:36]} Bxf5 {[%emt 0:01:33]} 25. Bxf5+ {[%emt 0:00:07]} Kb8 {[%emt 0:00:15]} 26. Rxe8 {[%emt 0:04:21]} Rxe8 {[%emt 0:00:07]} 27. Bd7 {[%emt 0:00:08]} Qe5 $2 {[%emt 0:08:31]} (27... Rf8 $14) 28. Bxe8 {[%emt 0:02:51]} Qxe8 {[%emt 0:00:09]} 29. Rxd6 {[%emt 0:00:45]} Kc8 {[%emt 0:00:39]} 30. Rd2 {[%emt 0:02:29]} Qe1+ {[%emt 0:00:15]} 31. Kc2 {[%emt 0:00:16]} Bf6 {[%emt 0:00:54]} 32. Qc5 {[%emt 0:00:40]} Qe6 {[%emt 0:02:20]} 33. Qd6 {[%emt 0:01:31]} Qf5+ {[%emt 0:00:34]} 34. Kc1 {[%emt 0:00:44]} g4 {[%emt 0:00:35]} (34... Qe5 $142 35. g4 Qe7) 35. fxg4 {[%emt 0:02:36]} Qf1+ {[%emt 0:00:13]} 36. Kc2 {[%emt 0:00:22]} Bg5 {[%emt 0:00:13]} 37. Qe6+ {[%emt 0:00:37]} Kb8 {[%emt 0:00:31]} 38. Re2 {[%emt 0:01:19]} Ka7 {[%emt 0:01:13]} 39. Qe5 {[%emt 0:00:37]} Qc1+ {[%emt 0:02:41]} 40. Kb3 {[%emt 0:00:09]} Qd1+ {[%emt 0:30:19]} 41. Ka3 {[%emt 0:30:41]} Bf6 {[%emt 0:04:08]} 42. Qe3+ {[%emt 0:00:00]} ({Not} 42. Qxf6 Qxe2 43. Qxh6 Qxg4 $16) 42... b6 {[%emt 0:00:00]} (42... Ka8 $142 43. Qd2 Qg1 44. Re8+ Ka7 45. Qe3+ Qxe3 46. Rxe3 Bg5) 43. Rd2 {[%emt 0:00:00]} Qxg4 {[%emt 0:00:00]} 44. Qxh6 {[%emt 0:00:00]} Qe6 {[%emt 0:00:00]} 45. Qh7+ {[%emt 0:00:00]} Be7+ {[%emt 0:00:00]} 46. b4 {[%emt 0:00:00]} Kb8 {[%emt 0:00:00]} 47. Qd3 {[%emt 0:00:00]} a5 {[%emt 0:00:00]} 48. Re2 {[%emt 0:00:00]} axb4+ {[%emt 0:00:00]} 49. cxb4 {[%emt 0:00:00]} Qf6 {[%emt 0:00:00]} 50. Qe3 {[%emt 0:00:00]} Ka8 {[%emt 0:00:00]} 51. Qxe7 {[%emt 0:00:00]} Qc3+ $18 {[%emt 0:00:00]} 52. Ka4 {[%emt 0:00:00]} b5+ {[%emt 0:00:00]} 53. Ka5 {[%emt 0:00:00]} Qa3+ {[%emt 0:00:00]} 54. Kb6 {[%emt 0:00:00]} 1-0

[Event "DFMMLV 2017"]
[Site "Braunfels"]
[Date "2017.06.18"]
[Round "5"]
[White "Busch, Annette"]
[Black "Antczak, Lena"]
[Result "0-1"]
[ECO "A40"]
[WhiteElo "1637"]
[BlackElo "1754"]
[Annotator "NA"]
[PlyCount "66"]
[EventDate "2017.??.??"]
[EventType "team-tourn"]
[EventCountry "GER"]
[SourceTitle "playchess.com"]
[Source "ChessBase"]
[SourceQuality "1"]
[TimeControl "40/5400+30:1800+30"]

1. d4 {[%emt 0:00:00]} e6 {[%emt 0:00:06]} 2. Bf4 {[%emt 0:00:00]} f5 {[%emt 0:00:12]} 3. e3 {[%emt 0:00:00]} Nf6 {[%emt 0:00:06]} 4. Nf3 {[%emt 0:00:00]} d6 {[%emt 0:00:05]} 5. Bc4 {[%emt 0:00:41]} Be7 {[%emt 0:01:00]} 6. Nbd2 {[%emt 0:03:28]} O-O {[%emt 0:00:41]} 7. c3 {[%emt 0:01:41]} Qe8 {[%emt 0:02:06]} 8. Qe2 {[%emt 0:01:33]} a6 {[%emt 0:03:22]} 9. h3 {[%emt 0:00:56]} Nc6 {[%emt 0:03:08]} 10. O-O-O {[%emt 0:03:11]} b5 {[%emt 0:00:36]} 11. Bb3 {[%emt 0:00:38]} Na5 {[%emt 0:04:16]} 12. Bc2 {[%emt 0:03:03]} c5 {[%emt 0:03:42]} 13. g4 {[%emt 0:00:55]} b4 {[%emt 0:04:59]} 14. cxb4 {[%emt 0:16:59]} cxb4 {[%emt 0:00:16]} 15. gxf5 {[%emt 0:01:31]} exf5 {[%emt 0:00:10]} 16. Rhg1 {[%emt 0:06:18]} Qc6 {[%emt 0:04:48]} 17. Kb1 {[%emt 0:13:51]} Be6 {[%emt 0:01:54]} 18. Ng5 {[%emt 0:04:45]} Bd7 {[%emt 0:06:37]} 19. Rc1 {[%emt 0:02:13]} Qb7 {[%emt 0:02:08]} 20. Nb3 {[%emt 0:05:10]} Nc6 {[%emt 0:03:15]} 21. Qc4+ {[%emt 0:01:13]} d5 {[%emt 0:01:15]} 22. Qe2 {[%emt 0:01:08]} a5 {[%emt 0:02:37]} 23. Nc5 {[%emt 0:02:08]} Bxc5 {[%emt 0:02:18]} 24. dxc5 {[%emt 0:00:05]} a4 {[%emt 0:02:03]} 25. Bd3 {[%emt 0:11:04]} Rfe8 {[%emt 0:14:07]} 26. Qd2 {[%emt 0:02:51]} Ne4 {[%emt 0:03:27]} 27. Bxe4 dxe4 {[%emt 0:05:20]} 28. Qd5+ {[%emt 0:05:06]} Be6 {[%emt 0:00:41]} 29. Nxe6 {[%emt 0:00:40]} Kh8 {[%emt 0:03:31]} 30. Nd4 {[%emt 0:02:52]} Ra6 {[%emt 0:01:15]} 31. Nxc6 {[%emt 0:00:21]} Rxc6 {[%emt 0:00:08]} 32. Be5 {[%emt 0:01:47]} Rc7 {[%emt 0:01:35]} 33. Bxc7 {[%emt 0:00:56]} Qxd5 {[%emt 0:00:12]} 0-1

[Event "DFMMLV 2017"]
[Site "Braunfels"]
[Date "2017.06.18"]
[Round "5"]
[White "Semenova, Alisa"]
[Black "Landenberger, Anja Kathrin"]
[Result "1/2-1/2"]
[ECO "B18"]
[WhiteElo "1621"]
[BlackElo "1544"]
[Annotator "NA"]
[PlyCount "54"]
[EventDate "2017.??.??"]
[EventType "team-tourn"]
[EventCountry "GER"]
[SourceTitle "playchess.com"]
[Source "ChessBase"]
[SourceQuality "1"]
[TimeControl "40/5400+30:1800+30"]

1. e4 {[%emt 0:00:00]} c6 {[%emt 0:01:56]} 2. d4 {[%emt 0:00:00]} d5 {[%emt 0:00:17]} 3. Nc3 {[%emt 0:00:28]} dxe4 {[%emt 0:01:43]} 4. Nxe4 {[%emt 0:00:12]} Bf5 {[%emt 0:00:56]} 5. Ng3 {[%emt 0:01:29]} Bg6 {[%emt 0:01:03]} 6. Nf3 {[%emt 0:02:12]} e6 {[%emt 0:03:42]} 7. Bd3 {[%emt 0:07:16]} Bxd3 {[%emt 0:01:03]} 8. Qxd3 {[%emt 0:00:35]} Be7 {[%emt 0:03:16]} 9. Be3 {[%emt 0:08:54]} Nd7 {[%emt 0:04:39]} 10. O-O {[%emt 0:09:55]} Ngf6 {[%emt 0:05:55]} 11. c4 {[%emt 0:08:41]} O-O {[%emt 0:05:02]} 12. Rad1 {[%emt 0:05:30]} Qc7 {[%emt 0:04:11]} 13. Ng5 {[%emt 0:10:58]} Rfd8 {[%emt 0:09:07]} 14. Qe2 {[%emt 0:05:35]} Nf8 {[%emt 0:01:06]} 15. f4 {[%emt 0:05:16]} c5 {[%emt 0:12:20]} 16. f5 {[%emt 0:09:42]} cxd4 {[%emt 0:03:53]} 17. Rxd4 {[%emt 0:02:36]} Rxd4 {[%emt 0:09:44]} 18. Bxd4 {[%emt 0:00:08]} Bc5 {[%emt 0:00:17]} 19. Bxc5 {[%emt 0:02:25]} Qxc5+ {[%emt 0:00:02]} 20. Kh1 {[%emt 0:00:14]} Re8 {[%emt 0:07:00]} 21. N3e4 {[%emt 0:04:10]} Nxe4 {[%emt 0:03:51]} 22. Qxe4 {[%emt 0:03:54]} Qc6 {[%emt 0:03:02]} 23. Qxc6 {[%emt 0:05:13]} bxc6 {[%emt 0:00:13]} 24. fxe6 {[%emt 0:02:12]} f6 {[%emt 0:00:28]} 25. Nf3 {[%emt 0:01:05]} Rxe6 {[%emt 0:03:38]} 26. Re1 {[%emt 0:00:13]} Kf7 {[%emt 0:02:34]} 27. Kg1 {[%emt 0:01:19]} Rxe1+ {[%emt 0:03:17]} 1/2-1/2

[Event "DFMMLV 2017"]
[Site "Braunfels"]
[Date "2017.06.18"]
[Round "5"]
[White "Krausse, Vanessa"]
[Black "Zpevakova, Katerina"]
[Result "1-0"]
[ECO "B42"]
[WhiteElo "1600"]
[BlackElo "1912"]
[Annotator "NA RC"]
[PlyCount "157"]
[EventDate "2017.??.??"]
[EventType "team-tourn"]
[EventCountry "GER"]
[SourceTitle "playchess.com"]
[Source "ChessBase"]
[SourceQuality "1"]
[TimeControl "40/5400+30:1800+30"]

{[%evp 11,153,46,42,43,40,5,12,12,10,-2,7,-8,0,-20,-29,-30,-31,-40,-27,-48,-54,-61,-49,-83,-78,-130,-106,-237,32767,-226,32767,-138,-146,-138,-158,-167,32767,-117,-123,-116,32767,32767,-169,-295,-190,-190,-195,32767,-181,-218,-206,32767,32767,32767,32767,-167,32767,32767,32767,32767,309,357,333,32767,32767,32767,32767,323,368,32767,313,314,32767,400,436,32767,504,516,449,246,228,109,32767,32767,243,32767,32767,32767,32767,641,32767,706,655,477,200,489,470,391,470,733,554,733,32767,32767,1006,905,498,502,340,450,867,435,401,1482,1152,0,169,164,194,195,181,93,296,8,32767,32767,32767,32767,12851,12851,5701,6727,9543,10,12851,3646,865,1288,5409,29977,12851,29979,32767,12851]} 1. e4 {[%emt 0:00:00]} c5 {[%emt 0:00:05]} 2. Nf3 {[%emt 0:00:00]} e6 {[%emt 0:00:08]} 3. d4 {[%emt 0:00:19]} cxd4 {[%emt 0:00:06]} 4. Nxd4 {[%emt 0:00:09]} a6 {[%emt 0:00:14]} 5. Bd3 {[%emt 0:01:33]} Qc7 {[%emt 0:02:23]} 6. O-O {[%emt 0:01:48]} Nf6 {[%emt 0:00:12]} 7. Re1 {[%emt 0:01:13]} d6 {[%emt 0:00:41] LiveBook: 19 Games B42: Sicilian: Kan Variation: 5 Bd3} 8. Nd2 {[%emt 0:03:04]} (8. f4 Nbd7 9. Qf3 g6 10. Nd2 Bg7 11. c3 O-O 12. Nf1 b6 13. Ng3 Bb7 14. Rf1 h5 15. Bd2 {0-1 (30) Baghdasaryan,V (2406)-Pantsulaia,L (2595) Dubai 2012}) 8... Be7 {[%emt 0:00:30]} 9. N2f3 {[%emt 0:00:53]} Nbd7 {[%emt 0:00:57]} 10. Qe2 $146 {[%emt 0:03:57]} ({Predecessor:} 10. Nb3 O-O 11. Bd2 b6 12. c4 Bb7 13. Bc3 e5 14. Bb4 Nh5 15. g3 g6 {½-½ (27) Lorite Cruz,F (2198)-Garcia Paolicchi,R (2318) Collado Villalba 2000}) 10... O-O {[%emt 0:10:33]} 11. Bf4 {[%emt 0:09:56]} Ne5 {[%emt 0:07:01]} 12. Bxe5 {[%emt 0:01:49]} dxe5 {[%emt 0:00:11]} 13. Nb3 {[%emt 0:00:25]} b6 {[%emt 0:06:52]} 14. Rad1 {[%emt 0:05:05]} Bb7 {[%emt 0:01:43]} 15. Nbd2 {[%emt 0:02:17]} Nd7 {[%emt 0:03:06]} 16. Nc4 {[%emt 0:10:55]} b5 {[%emt 0:01:49]} 17. Ne3 {[%emt 0:01:40]} Nc5 {[%emt 0:03:14]} 18. Ng4 {[%emt 0:03:15]} f6 {[%emt 0:05:46]} 19. Rd2 {[%emt 0:05:38]} (19. h3 $17 {is a better defense.}) 19... h5 {[%emt 0:08:27]} 20. Ne3 {[%emt 0:01:48]} Bxe4 {[%emt 0:03:03]} 21. Bxe4 {[%emt 0:01:32]} Nxe4 {[%emt 0:00:24]} 22. Rd3 {[%emt 0:00:55]} f5 {[%emt 0:01:27]} 23. Red1 {[%emt 0:01:14]} Rad8 {[%emt 0:01:50]} 24. Rxd8 {[%emt 0:01:39]} Rxd8 {[%emt 0:00:12]} 25. Rxd8+ {[%emt 0:00:20]} Bxd8 {[%emt 0:00:15]} 26. Qd3 {[%emt 0:01:14]} Bf6 {[%emt 0:00:54]} 27. Qa3 {[%emt 0:06:03]} (27. Qe2 {is a better defense.}) 27... Qd6 {[%emt 0:02:14]} 28. Qxd6 {[%emt 0:03:59]} Nxd6 {[%emt 0:00:07]} 29. b3 {[%emt 0:00:31]} g5 {[%emt 0:07:06]} 30. h3 {[%emt 0:03:59]} e4 {[%emt 0:00:40]} 31. Nd2 {[%emt 0:00:14]} Bd4 {[%emt 0:01:56]} 32. c4 {[%emt 0:01:29]} Kf7 {[%emt 0:09:31]} 33. Nc2 {[%emt 0:04:11]} e5 {[%emt 0:03:40]} 34. Kf1 {[%emt 0:00:47]} Ke7 {[%emt 0:01:09]} 35. Nb4 {[%emt 0:00:28]} Bc3 $2 {[%emt 0:01:28]} (35... g4 $17 {and life is bright.} 36. hxg4 hxg4) 36. Nd5+ {[%emt 0:00:21]} Kd7 {[%emt 0:03:01]} 37. Nxc3 {[%emt 0:01:03]} Kc6 {[%emt 0:00:07]} 38. cxb5+ {[%emt 0:01:05]} axb5 {[%emt 0:00:13]} 39. Ke2 {[%emt 0:01:57]} Kc5 {[%emt 0:00:26]} 40. Nf1 {[%emt 0:03:01]} Kd4 {[%emt 0:31:15]} 41. Kd2 {[%emt 0:31:50]} f4 {[%emt 0:02:11]} 42. a3 {[%emt 0:03:49]} g4 {[%emt 0:03:06]} 43. hxg4 {[%emt 0:13:05]} hxg4 {[%emt 0:00:24]} 44. g3 {[%emt 0:00:00]} Kc5 {[%emt 0:00:00]} 45. Nh2 {[%emt 0:00:00]} (45. b4+ $142 Kb6 46. gxf4 Nc4+ 47. Ke2) 45... e3+ {[%emt 0:00:00]} 46. fxe3 {[%emt 0:00:00]} fxg3 {[%emt 0:00:00]} 47. Nxg4 {[%emt 0:00:00]} b4 {[%emt 0:00:00]} 48. axb4+ {[%emt 0:00:00]} Kxb4 {[%emt 0:00:00]} 49. Kc2 {[%emt 0:00:00]} Ne4 {[%emt 0:00:00]} 50. Ne2 {[%emt 0:00:00]} ({Don't blunder} 50. Nxe4 $2 g2 $19) 50... g2 {[%emt 0:00:00]} 51. Nxe5 {[%emt 0:00:00]} Ng3 {[%emt 0:00:00]} 52. Ng1 {[%emt 0:00:00]} Nf5 {[%emt 0:00:00]} 53. Ng4 {[%emt 0:00:00]} Ng3 {[%emt 0:00:00]} 54. Kb2 {[%emt 0:00:00]} Ne4 {[%emt 0:00:00]} 55. Ne5 {[%emt 0:00:00]} Nc5 {[%emt 0:00:00]} 56. Nc6+ {[%emt 0:00:00]} Kb5 {[%emt 0:00:00]} 57. Nd4+ {[%emt 0:00:00]} Kb4 {[%emt 0:00:00]} 58. Nc2+ {[%emt 0:00:00]} Kb5 {[%emt 0:00:00]} 59. Ka3 {[%emt 0:00:00]} Nd3 {[%emt 0:00:00]} 60. Nd4+ {[%emt 0:00:00]} Kc5 {[%emt 0:00:00]} 61. Ndf3 {[%emt 0:00:00]} Kd5 {[%emt 0:00:00]} 62. Nh4 {[%emt 0:00:00]} Ne1 {[%emt 0:00:00]} 63. b4 $2 {[%emt 0:00:00]} (63. Ka4 $18 Ke4 64. b4) 63... Nc2+ {[%emt 0:00:00] [#]} 64. Ka4 $1 {[%emt 0:00:00]} Nxe3 {[%emt 0:00:00]} 65. b5 {[%emt 0:00:33]} ({Not} 65. Nxg2 Nxg2 66. Nf3 Ne3 $11) 65... Kc5 {[%emt 0:01:09] [#]} 66. Ka5 $1 {[%emt 0:01:51]} ({Reject} 66. Nxg2 $6 Nc4 $11) 66... Nd5 {[%emt 0:00:45] [#]} (66... Nc4+ $16 {was worth a try.} 67. Ka6 Nb6) 67. Nxg2 $2 {[%emt 0:01:05]} (67. Nhf3 $1 $18) 67... Kd6 {[%emt 0:02:48]} 68. Nf3 {[%emt 0:00:23]} Kc7 {[%emt 0:00:19]} 69. Nd4 {[%emt 0:01:06]} Kb7 $2 {[%emt 0:00:36]} (69... Kb8 $11) 70. Ne6 {[%emt 0:01:54]} Ka7 {[%emt 0:00:53]} 71. Nc5 {[%emt 0:00:32]} Kb8 {[%emt 0:00:40]} 72. Nd7+ $2 {[%emt 0:05:23]} (72. Ne1 $18 Kc7 73. Nc2) 72... Kb7 {[%emt 0:00:42]} 73. Ne1 {[%emt 0:00:26]} Kc7 {[%emt 0:01:02] [#]} 74. Nc5 $1 {[%emt 0:00:19]} Kb8 $18 {[%emt 0:00:21]} 75. Ned3 {[%emt 0:00:07]} Ka7 {[%emt 0:00:31]} 76. Nb4 {[%emt 0:00:05]} Nc7 {[%emt 0:02:06]} 77. Nc6+ {[%emt 0:00:11]} Ka8 {[%emt 0:00:22]} 78. b6 {[%emt 0:00:10]} Ne6 {[%emt 0:01:10]} 79. b7# {[%emt 0:00:11]} 1-0